[Event "*** Titled Tuesday Blitz"]
[Site "Chess.com"]
[Date "2020.12.29"]
[Round "6"]
[White "Koksal06"]
[Black "gmcorrales"]
[Result "0-1"]
[WhiteElo "2454"]
[BlackElo "2783"]
[TimeControl "180+1"]
[EndTime "11:05:58 PST"]
[Termination "gmcorrales won by checkmate"]

1. d4 {[%clk 0:03:00.9]} 1... Nf6 {[%clk 0:02:53.9]} 2. c4 {[%clk 0:03:01.4]}
2... g6 {[%clk 0:02:54.2]} 3. Nf3 {[%clk 0:03:01.9]} 3... Bg7 {[%clk 0:02:53.8]}
4. Nc3 {[%clk 0:03:02.6]} 4... d5 {[%clk 0:02:54.3]} 5. Bg5 {[%clk 0:03:03.1]}
5... Ne4 {[%clk 0:02:53.7]} 6. cxd5 {[%clk 0:03:03.8]} 6... Nxg5 {[%clk
0:02:53.2]} 7. Nxg5 {[%clk 0:03:04.7]} 7... e6 {[%clk 0:02:53.8]} 8. Nf3 {[%clk
0:03:04.6]} 8... exd5 {[%clk 0:02:54.2]} 9. b4 {[%clk 0:03:05.3]} 9... O-O
{[%clk 0:02:34.8]} 10. e3 {[%clk 0:03:05.3]} 10... g5 {[%clk 0:02:33.2]} 11. Be2
{[%clk 0:03:03.7]} 11... g4 {[%clk 0:02:04.9]} 12. Nd2 {[%clk 0:03:03.4]} 12...
h5 {[%clk 0:02:04.4]} 13. g3 {[%clk 0:02:37.6]} 13... a5 {[%clk 0:01:38.4]} 14.
b5 {[%clk 0:02:37.4]} 14... c5 {[%clk 0:01:38.6]} 15. bxc6 {[%clk 0:02:36.4]}
15... bxc6 {[%clk 0:01:39.5]} 16. Na4 {[%clk 0:02:29.2]} 16... Bf5 {[%clk
0:01:19.2]} 17. Rc1 {[%clk 0:02:07.4]} 17... Ra7 {[%clk 0:01:16.7]} 18. Nc5
{[%clk 0:02:04.8]} 18... Re7 {[%clk 0:01:15.6]} 19. Ndb3 {[%clk 0:02:00.5]}
19... Rfe8 {[%clk 0:01:14.7]} 20. O-O {[%clk 0:01:56]} 20... Qd6 {[%clk
0:01:13.2]} 21. Bd3 {[%clk 0:01:55.2]} 21... Bc8 {[%clk 0:01:03.7]} 22. Nxa5
{[%clk 0:01:38.8]} 22... h4 {[%clk 0:01:03.7]} 23. Nab3 {[%clk 0:01:32.3]} 23...
hxg3 {[%clk 0:01:00.9]} 24. hxg3 {[%clk 0:01:33]} 24... Rxe3 {[%clk 0:01:00.8]}
25. Qd2 {[%clk 0:01:14.6]} 25... Bh6 {[%clk 0:00:57.3]} 26. Qc2 {[%clk
0:01:10.7]} 26... Kg7 {[%clk 0:00:53.9]} 27. Kg2 {[%clk 0:00:45.6]} 27... Rf3
{[%clk 0:00:31.9]} 28. Rce1 {[%clk 0:00:43.1]} 28... Rh8 {[%clk 0:00:20]} 29.
Re5 {[%clk 0:00:43]} 29... Qf6 {[%clk 0:00:18.7]} 30. Nd2 {[%clk 0:00:37.4]}
30... Bg5 {[%clk 0:00:17.9]} 31. Ree1 {[%clk 0:00:17.4]} 31... Rh3 {[%clk
0:00:13.1]} 32. Ndb3 {[%clk 0:00:16.4]} 32... Bf4 {[%clk 0:00:10.7]} 33. Rh1
{[%clk 0:00:14.1]} 33... Bxg3 {[%clk 0:00:10.4]} 34. Rxh3 {[%clk 0:00:12.7]}
34... gxh3+ {[%clk 0:00:11.3]} 35. Kh1 {[%clk 0:00:11.6]} 35... Rxf2 {[%clk
0:00:11.7]} 36. Qc1 {[%clk 0:00:12]} 36... Qf3+ {[%clk 0:00:10.4]} 37. Kg1
{[%clk 0:00:12]} 37... Qg2# {[%clk 0:00:11.3]} 0-1

[Event "*** Titled Tuesday Blitz"]
[Site "Chess.com"]
[Date "2020.12.29"]
[Round "6"]
[White "Kretov_Evgenij"]
[Black "area_5"]
[Result "0-1"]
[WhiteElo "2514"]
[BlackElo "2769"]
[TimeControl "180+1"]
[EndTime "11:05:59 PST"]
[Termination "area_5 won by resignation"]

1. d4 {[%clk 0:03:00.9]} 1... Nf6 {[%clk 0:02:59.7]} 2. c4 {[%clk 0:03:00.9]}
2... g6 {[%clk 0:03:00]} 3. Nc3 {[%clk 0:03:01.1]} 3... Bg7 {[%clk 0:03:00.2]}
4. e4 {[%clk 0:03:01.4]} 4... d6 {[%clk 0:03:00.4]} 5. Be2 {[%clk 0:03:01.6]}
5... O-O {[%clk 0:02:59.2]} 6. Bg5 {[%clk 0:03:01.6]} 6... c5 {[%clk 0:02:57.8]}
7. d5 {[%clk 0:03:01.3]} 7... b5 {[%clk 0:02:57.3]} 8. cxb5 {[%clk 0:03:00.6]}
8... a6 {[%clk 0:02:57.3]} 9. a4 {[%clk 0:03:00.1]} 9... axb5 {[%clk 0:02:56.1]}
10. Bxb5 {[%clk 0:02:59.4]} 10... Qa5 {[%clk 0:02:51.1]} 11. Bd2 {[%clk
0:02:58.3]} 11... Ba6 {[%clk 0:02:31.7]} 12. Ra3 {[%clk 0:02:56.3]} 12... Nbd7
{[%clk 0:02:17.1]} 13. Nf3 {[%clk 0:02:55.9]} 13... Bxb5 {[%clk 0:01:54.8]} 14.
axb5 {[%clk 0:02:54.4]} 14... Qb6 {[%clk 0:01:54.3]} 15. O-O {[%clk 0:02:52.8]}
15... Ng4 {[%clk 0:01:53.4]} 16. h3 {[%clk 0:02:49.3]} 16... Nge5 {[%clk
0:01:52.9]} 17. Nxe5 {[%clk 0:02:49.1]} 17... Nxe5 {[%clk 0:01:52.9]} 18. Qe2
{[%clk 0:02:49.2]} 18... Ra7 {[%clk 0:00:59.9]} 19. Rfa1 {[%clk 0:02:45.2]}
19... Rfa8 {[%clk 0:00:59.3]} 20. Be3 {[%clk 0:02:21]} 20... Nd7 {[%clk
0:00:56.5]} 21. Qc4 {[%clk 0:02:11.8]} 21... Qb7 {[%clk 0:00:52]} 22. Rxa7
{[%clk 0:01:59.2]} 22... Rxa7 {[%clk 0:00:51.7]} 23. Rxa7 {[%clk 0:01:59.1]}
23... Qxa7 {[%clk 0:00:51.8]} 24. Qa4 {[%clk 0:01:59.1]} 24... Qb8 {[%clk
0:00:52]} 25. Qa6 {[%clk 0:01:56.6]} 25... Nb6 {[%clk 0:00:50.8]} 26. Bc1 {[%clk
0:01:50.6]} 26... Na8 {[%clk 0:00:39]} 27. Qc6 {[%clk 0:01:43.8]} 27... Nb6
{[%clk 0:00:39]} 28. Kh2 {[%clk 0:01:40.2]} 28... Be5+ {[%clk 0:00:37.7]} 29. f4
{[%clk 0:01:39.5]} 29... Bd4 {[%clk 0:00:36.8]} 30. Ne2 {[%clk 0:01:37.4]} 30...
Bf6 {[%clk 0:00:36.1]} 31. b3 {[%clk 0:01:33.6]} 31... h5 {[%clk 0:00:35.8]} 32.
Be3 {[%clk 0:01:28.4]} 32... Kg7 {[%clk 0:00:28]} 33. e5 {[%clk 0:01:20.4]}
33... dxe5 {[%clk 0:00:26.7]} 34. Bxc5 {[%clk 0:01:20.6]} 34... Nc8 {[%clk
0:00:26.3]} 35. b6 {[%clk 0:01:18]} 35... exf4 {[%clk 0:00:25.6]} 36. Qc7 {[%clk
0:01:15.6]} 36... Qxc7 {[%clk 0:00:24.1]} 37. bxc7 {[%clk 0:01:16]} 37... Be5
{[%clk 0:00:24.6]} 38. Kg1 {[%clk 0:01:13.3]} 38... Bxc7 {[%clk 0:00:23.7]} 39.
b4 {[%clk 0:01:11.6]} 39... Nb6 {[%clk 0:00:23.4]} 40. Nc3 {[%clk 0:01:11.2]}
40... Kf6 {[%clk 0:00:22.6]} 41. Bd4+ {[%clk 0:01:10.8]} 41... Be5 {[%clk
0:00:18.8]} 42. Bxb6 {[%clk 0:01:06.9]} 42... Bxc3 {[%clk 0:00:18.9]} 43. Bc5
{[%clk 0:01:03.5]} 43... Ke5 {[%clk 0:00:18.3]} 44. Bxe7 {[%clk 0:01:03.6]}
44... Kxd5 {[%clk 0:00:18.6]} 45. Kf2 {[%clk 0:01:03.8]} 45... Ke4 {[%clk
0:00:15.6]} 46. b5 {[%clk 0:01:02.9]} 46... Bd4+ {[%clk 0:00:15.7]} 47. Ke2
{[%clk 0:01:02.9]} 47... Bb6 {[%clk 0:00:16.2]} 48. Bd6 {[%clk 0:01:02.4]} 48...
f6 {[%clk 0:00:15.8]} 49. Bb8 {[%clk 0:01:01.7]} 49... g5 {[%clk 0:00:15.6]} 50.
Bd6 {[%clk 0:01:01.5]} 50... f5 {[%clk 0:00:15]} 51. Be7 {[%clk 0:00:59.9]}
51... g4 {[%clk 0:00:15.2]} 52. h4 {[%clk 0:00:57.7]} 52... Kd5 {[%clk
0:00:14.8]} 53. Kd3 {[%clk 0:00:52.8]} 53... f3 {[%clk 0:00:14.4]} 54. gxf3
{[%clk 0:00:53]} 54... g3 {[%clk 0:00:14.5]} 0-1

[Event "*** Titled Tuesday Blitz"]
[Site "Chess.com"]
[Date "2020.12.29"]
[Round "6"]
[White "WPWPWP-2015"]
[Black "BahadirOzen"]
[Result "1/2-1/2"]
[WhiteElo "2476"]
[BlackElo "2774"]
[TimeControl "180+1"]
[EndTime "11:06:00 PST"]
[Termination "Game drawn by repetition"]

1. e4 {[%clk 0:03:00.9]} 1... e5 {[%clk 0:03:00.5]} 2. Nf3 {[%clk 0:02:58.3]}
2... Nc6 {[%clk 0:03:00.9]} 3. Bb5 {[%clk 0:02:58.2]} 3... Nf6 {[%clk 0:03:01]}
4. O-O {[%clk 0:02:57.3]} 4... Nxe4 {[%clk 0:03:00.6]} 5. d4 {[%clk 0:02:55.5]}
5... Nd6 {[%clk 0:03:00.8]} 6. Bxc6 {[%clk 0:02:54.4]} 6... dxc6 {[%clk
0:03:01]} 7. dxe5 {[%clk 0:02:55]} 7... Nf5 {[%clk 0:03:01.3]} 8. Qxd8+ {[%clk
0:02:54.9]} 8... Kxd8 {[%clk 0:03:02.2]} 9. Nc3 {[%clk 0:02:55]} 9... Ke8 {[%clk
0:03:02.1]} 10. h3 {[%clk 0:02:53.6]} 10... h5 {[%clk 0:03:01.9]} 11. Bf4 {[%clk
0:02:53]} 11... Be6 {[%clk 0:02:51.4]} 12. Rfe1 {[%clk 0:02:46.5]} 12... Bb4
{[%clk 0:02:47.2]} 13. Bd2 {[%clk 0:02:31.5]} 13... Rd8 {[%clk 0:02:32.8]} 14.
a3 {[%clk 0:02:29.9]} 14... Bxc3 {[%clk 0:02:30.2]} 15. Bxc3 {[%clk 0:02:28.3]}
15... c5 {[%clk 0:02:24.6]} 16. Rad1 {[%clk 0:02:16.9]} 16... Rd5 {[%clk
0:01:58.2]} 17. Ng5 {[%clk 0:02:08.1]} 17... Ke7 {[%clk 0:01:53.7]} 18. Rxd5
{[%clk 0:01:21.7]} 18... Bxd5 {[%clk 0:01:53.2]} 19. Rd1 {[%clk 0:01:21.4]}
19... Bc6 {[%clk 0:01:26.5]} 20. Kf1 {[%clk 0:01:20.6]} 20... b6 {[%clk
0:01:10.5]} 21. g3 {[%clk 0:01:10.9]} 21... a5 {[%clk 0:01:00.8]} 22. h4 {[%clk
0:01:09.8]} 22... Ra8 {[%clk 0:00:48.5]} 23. Rd2 {[%clk 0:01:06.6]} 23... g6
{[%clk 0:00:44.8]} 24. b3 {[%clk 0:00:51.2]} 24... Ng7 {[%clk 0:00:41.1]} 25.
Nh7 {[%clk 0:00:27.2]} 25... Ne8 {[%clk 0:00:31.5]} 26. a4 {[%clk 0:00:26.2]}
26... Rd8 {[%clk 0:00:29.2]} 27. Ke2 {[%clk 0:00:23.2]} 27... Rxd2+ {[%clk
0:00:26.9]} 28. Bxd2 {[%clk 0:00:23.1]} 28... Be4 {[%clk 0:00:25.2]} 29. Kd1
{[%clk 0:00:17.9]} 29... Bf3+ {[%clk 0:00:25.3]} 30. Kc1 {[%clk 0:00:17.4]}
30... Bc6 {[%clk 0:00:23.6]} 31. Ng5 {[%clk 0:00:16.4]} 31... Ng7 {[%clk
0:00:21.1]} 32. Bf4 {[%clk 0:00:15.9]} 32... Ne6 {[%clk 0:00:20.9]} 33. Nxe6
{[%clk 0:00:14.9]} 33... Kxe6 {[%clk 0:00:21.8]} 34. Kd2 {[%clk 0:00:15]} 34...
Be4 {[%clk 0:00:22]} 35. c4 {[%clk 0:00:14.4]} 35... Bf3 {[%clk 0:00:19.3]} 36.
Kd3 {[%clk 0:00:14.5]} 36... Bd1 {[%clk 0:00:18.7]} 37. Kc3 {[%clk 0:00:15]}
37... Bg4 {[%clk 0:00:18]} 38. Kb2 {[%clk 0:00:15.3]} 38... Bf3 {[%clk
0:00:17.9]} 39. Kc3 {[%clk 0:00:15.8]} 39... Bg4 {[%clk 0:00:16.9]} 40. Kb2
{[%clk 0:00:16.2]} 40... Bf3 {[%clk 0:00:17.1]} 41. Kc3 {[%clk 0:00:16.7]} 41...
Bg4 {[%clk 0:00:17.3]} 1/2-1/2

[Event "*** Titled Tuesday Blitz"]
[Site "Chess.com"]
[Date "2020.12.29"]
[Round "6"]
[White "Jenia84"]
[Black "Susal_De_Silva"]
[Result "0-1"]
[WhiteElo "2342"]
[BlackElo "2573"]
[TimeControl "180+1"]
[EndTime "11:06:00 PST"]
[Termination "Susal_De_Silva won by resignation"]

1. Nf3 {[%clk 0:03:00.9]} 1... Nf6 {[%clk 0:02:59.4]} 2. b3 {[%clk 0:02:59.8]}
2... g6 {[%clk 0:02:57.9]} 3. Bb2 {[%clk 0:03:00.2]} 3... Bg7 {[%clk 0:02:58.8]}
4. e3 {[%clk 0:03:00.5]} 4... b6 {[%clk 0:02:59]} 5. Be2 {[%clk 0:03:01]} 5...
Bb7 {[%clk 0:02:59.2]} 6. O-O {[%clk 0:03:01.5]} 6... O-O {[%clk 0:03:00.1]} 7.
c4 {[%clk 0:03:01.6]} 7... d6 {[%clk 0:02:58.9]} 8. d4 {[%clk 0:02:59.8]} 8...
Ne4 {[%clk 0:02:59.1]} 9. Nbd2 {[%clk 0:02:59.5]} 9... Nxd2 {[%clk 0:02:57.2]}
10. Qxd2 {[%clk 0:02:59.6]} 10... Nd7 {[%clk 0:02:58.1]} 11. d5 {[%clk
0:02:55.2]} 11... Nf6 {[%clk 0:02:54.9]} 12. Bd3 {[%clk 0:02:50.8]} 12... Qd7
{[%clk 0:02:49.9]} 13. e4 {[%clk 0:02:50.1]} 13... e5 {[%clk 0:02:48.1]} 14. b4
{[%clk 0:02:43.3]} 14... Nh5 {[%clk 0:02:46.7]} 15. Nh4 {[%clk 0:02:29.5]} 15...
Bf6 {[%clk 0:02:36.4]} 16. Nf3 {[%clk 0:02:27.4]} 16... Nf4 {[%clk 0:02:34]} 17.
Rfd1 {[%clk 0:02:07.4]} 17... Qg4 {[%clk 0:02:26.5]} 18. Bf1 {[%clk 0:02:01.5]}
18... Bg7 {[%clk 0:02:13.7]} 19. Kh1 {[%clk 0:01:42.8]} 19... f5 {[%clk
0:02:10.6]} 20. Qe3 {[%clk 0:01:29.2]} 20... fxe4 {[%clk 0:02:06.3]} 21. Qxe4
{[%clk 0:01:28.8]} 21... Bc8 {[%clk 0:02:06.4]} 22. Rd2 {[%clk 0:00:54]} 22...
Bf5 {[%clk 0:02:02.9]} 23. Qe1 {[%clk 0:00:53.1]} 23... Rae8 {[%clk 0:01:56.4]}
24. Ng1 {[%clk 0:00:51.8]} 24... Bh6 {[%clk 0:01:45.1]} 25. f3 {[%clk
0:00:50.5]} 25... Qg5 {[%clk 0:01:38.7]} 26. g3 {[%clk 0:00:42.5]} 26... e4
{[%clk 0:01:19.1]} 27. gxf4 {[%clk 0:00:31.3]} 27... Qxf4 {[%clk 0:01:20]} 28.
Re2 {[%clk 0:00:28]} 28... e3 {[%clk 0:01:06.2]} 29. Qc3 {[%clk 0:00:26.4]}
29... Re5 {[%clk 0:01:05.5]} 30. Rae1 {[%clk 0:00:22.7]} 30... Rfe8 {[%clk
0:00:36.2]} 31. Rxe3 {[%clk 0:00:21.7]} 31... Bg7 {[%clk 0:00:28.7]} 32. Rxe5
{[%clk 0:00:19.8]} 32... Bxe5 {[%clk 0:00:28.3]} 33. Re2 {[%clk 0:00:12.7]}
33... Bxc3 {[%clk 0:00:26.4]} 34. Rxe8+ {[%clk 0:00:12.5]} 34... Kf7 {[%clk
0:00:26.9]} 35. Bxc3 {[%clk 0:00:12.3]} 35... Kxe8 {[%clk 0:00:26.3]} 36. Bg2
{[%clk 0:00:12.2]} 36... Qc1 {[%clk 0:00:25.7]} 37. Bd4 {[%clk 0:00:11.1]} 37...
Qxc4 {[%clk 0:00:25.5]} 0-1

[Event "*** Titled Tuesday Blitz"]
[Site "Chess.com"]
[Date "2020.12.29"]
[Round "6"]
[White "alexrustemov"]
[Black "GMBenjaminBok"]
[Result "0-1"]
[WhiteElo "2672"]
[BlackElo "2880"]
[TimeControl "180+1"]
[EndTime "11:06:01 PST"]
[Termination "GMBenjaminBok won by resignation"]

1. d4 {[%clk 0:03:00.9]} 1... d5 {[%clk 0:02:59.6]} 2. c4 {[%clk 0:03:00.3]}
2... c6 {[%clk 0:03:00]} 3. Nc3 {[%clk 0:02:57.5]} 3... Nf6 {[%clk 0:03:00.4]}
4. e3 {[%clk 0:02:57.1]} 4... Bf5 {[%clk 0:03:00.1]} 5. cxd5 {[%clk 0:02:56.4]}
5... cxd5 {[%clk 0:02:59.8]} 6. Qb3 {[%clk 0:02:56.9]} 6... Nc6 {[%clk
0:02:28.8]} 7. Qxb7 {[%clk 0:02:55.4]} 7... Bd7 {[%clk 0:02:29.2]} 8. Qb3 {[%clk
0:02:55]} 8... Rb8 {[%clk 0:02:24.3]} 9. Qd1 {[%clk 0:02:54.3]} 9... e5 {[%clk
0:02:24.8]} 10. dxe5 {[%clk 0:02:54.9]} 10... Nxe5 {[%clk 0:02:25.7]} 11. Be2
{[%clk 0:02:55.6]} 11... Bd6 {[%clk 0:02:20.6]} 12. Nf3 {[%clk 0:02:54.9]} 12...
O-O {[%clk 0:02:15]} 13. O-O {[%clk 0:02:53.9]} 13... Re8 {[%clk 0:01:46.8]} 14.
a4 {[%clk 0:02:40.1]} 14... Qe7 {[%clk 0:00:57.7]} 15. Nb5 {[%clk 0:02:36.5]}
15... Nxf3+ {[%clk 0:00:52.3]} 16. Bxf3 {[%clk 0:02:35.9]} 16... Bxb5 {[%clk
0:00:52.7]} 17. axb5 {[%clk 0:02:35.1]} 17... Rxb5 {[%clk 0:00:53.6]} 18. Qd3
{[%clk 0:02:17.9]} 18... Reb8 {[%clk 0:00:49]} 19. Rd1 {[%clk 0:02:08]} 19...
Be5 {[%clk 0:00:38.9]} 20. Qa3 {[%clk 0:01:35.5]} 20... Qxa3 {[%clk 0:00:38.4]}
21. Rxa3 {[%clk 0:01:35.2]} 21... R8b7 {[%clk 0:00:35.9]} 22. g3 {[%clk
0:01:25.6]} 22... g6 {[%clk 0:00:35.1]} 23. Kg2 {[%clk 0:01:08.3]} 23... Bxb2
{[%clk 0:00:12.8]} 24. Bxb2 {[%clk 0:01:07.4]} 24... Rxb2 {[%clk 0:00:13.7]} 25.
Bxd5 {[%clk 0:00:51.5]} 25... Rd7 {[%clk 0:00:13.7]} 26. Rad3 {[%clk 0:00:37.7]}
26... Ng4 {[%clk 0:00:11]} 27. Rf1 {[%clk 0:00:29]} 27... Rxd5 {[%clk
0:00:09.8]} 28. Ra3 {[%clk 0:00:15.4]} 28... Rdd2 {[%clk 0:00:09.1]} 29. h3
{[%clk 0:00:16.1]} 29... Rxf2+ {[%clk 0:00:08.4]} 30. Rxf2 {[%clk 0:00:14.4]}
30... Nxf2 {[%clk 0:00:09.3]} 31. Rxa7 {[%clk 0:00:12.3]} 31... Kg7 {[%clk
0:00:09.4]} 32. h4 {[%clk 0:00:08.8]} 32... h5 {[%clk 0:00:07.4]} 33. Kf3 {[%clk
0:00:09.7]} 33... Ng4 {[%clk 0:00:07.6]} 0-1

[Event "*** Titled Tuesday Blitz"]
[Site "Chess.com"]
[Date "2020.12.29"]
[Round "6"]
[White "Tekushka"]
[Black "Chessbard1972"]
[Result "0-1"]
[WhiteElo "2429"]
[BlackElo "2323"]
[TimeControl "180+1"]
[EndTime "11:06:05 PST"]
[Termination "Chessbard1972 won by resignation"]

1. e4 {[%clk 0:03:00.9]} 1... c5 {[%clk 0:02:54.7]} 2. Nf3 {[%clk 0:03:00.6]}
2... a6 {[%clk 0:02:54.4]} 3. c3 {[%clk 0:02:59.3]} 3... d5 {[%clk 0:02:53.7]}
4. exd5 {[%clk 0:02:59.4]} 4... Qxd5 {[%clk 0:02:54.3]} 5. d4 {[%clk 0:02:59.6]}
5... Nf6 {[%clk 0:02:54.8]} 6. Be3 {[%clk 0:02:51.2]} 6... cxd4 {[%clk 0:02:53]}
7. cxd4 {[%clk 0:02:50.4]} 7... Bg4 {[%clk 0:02:51.9]} 8. Nc3 {[%clk 0:02:40.7]}
8... Qd6 {[%clk 0:02:50.9]} 9. h3 {[%clk 0:02:31.3]} 9... Bh5 {[%clk 0:02:48.9]}
10. Be2 {[%clk 0:02:24]} 10... e6 {[%clk 0:02:47.7]} 11. Qb3 {[%clk 0:02:21.5]}
11... Qb4 {[%clk 0:02:47.4]} 12. Qc2 {[%clk 0:02:08.7]} 12... Nc6 {[%clk
0:02:39.9]} 13. a3 {[%clk 0:02:07.3]} 13... Qd6 {[%clk 0:02:39.3]} 14. Qb3
{[%clk 0:02:01.1]} 14... Be7 {[%clk 0:02:31.9]} 15. Qxb7 {[%clk 0:01:52.4]}
15... O-O {[%clk 0:02:29.3]} 16. Qb3 {[%clk 0:01:49.4]} 16... Rab8 {[%clk
0:02:20.6]} 17. Qc2 {[%clk 0:01:49.3]} 17... Bxf3 {[%clk 0:02:19.3]} 18. Bxf3
{[%clk 0:01:49.4]} 18... Nxd4 {[%clk 0:02:19.2]} 19. Bxd4 {[%clk 0:01:48.9]}
19... Qxd4 {[%clk 0:02:19.2]} 20. O-O {[%clk 0:01:48.7]} 20... Bc5 {[%clk
0:02:06.8]} 21. Rad1 {[%clk 0:01:39.9]} 21... Qh4 {[%clk 0:02:05.3]} 22. b4
{[%clk 0:01:24.4]} 22... Bb6 {[%clk 0:01:57.1]} 23. Rd3 {[%clk 0:01:13.8]} 23...
h6 {[%clk 0:01:50.9]} 24. Qe2 {[%clk 0:01:09.1]} 24... a5 {[%clk 0:01:48.7]} 25.
b5 {[%clk 0:01:02]} 25... a4 {[%clk 0:01:47.3]} 26. Ne4 {[%clk 0:00:56.1]} 26...
Nd5 {[%clk 0:01:42.4]} 27. Qd2 {[%clk 0:00:42.2]} 27... Rfd8 {[%clk 0:01:30.8]}
28. Rd1 {[%clk 0:00:16.1]} 28... f5 {[%clk 0:01:24.6]} 29. g3 {[%clk 0:00:13.7]}
29... Qxh3 {[%clk 0:01:17.1]} 30. Bg2 {[%clk 0:00:13.6]} 30... Qg4 {[%clk
0:01:07.7]} 31. Bf3 {[%clk 0:00:13.3]} 31... Qg6 {[%clk 0:01:02.4]} 32. Nc3
{[%clk 0:00:11.5]} 32... Qxg3+ {[%clk 0:00:59.2]} 33. Bg2 {[%clk 0:00:11.5]}
33... Qg4 {[%clk 0:00:46.1]} 34. Nxd5 {[%clk 0:00:10.8]} 34... exd5 {[%clk
0:00:45.1]} 35. Rxd5 {[%clk 0:00:10.6]} 35... Kh7 {[%clk 0:00:33.9]} 36. Qd3
{[%clk 0:00:09.3]} 36... Rxd5 {[%clk 0:00:30.9]} 37. Qxd5 {[%clk 0:00:08.9]}
37... Rd8 {[%clk 0:00:29.4]} 38. Qxd8 {[%clk 0:00:07.9]} 38... Bxd8 {[%clk
0:00:28.5]} 39. Rxd8 {[%clk 0:00:08.8]} 39... Qg5 {[%clk 0:00:22.8]} 40. b6
{[%clk 0:00:07.1]} 40... Qxd8 {[%clk 0:00:21.8]} 0-1

[Event "*** Titled Tuesday Blitz"]
[Site "Chess.com"]
[Date "2020.12.29"]
[Round "6"]
[White "Legendinunknown"]
[Black "NoGalloNoParty"]
[Result "1-0"]
[WhiteElo "2553"]
[BlackElo "2368"]
[TimeControl "180+1"]
[EndTime "11:06:07 PST"]
[Termination "Legendinunknown won on time"]

1. d4 {[%clk 0:02:59.6]} 1... Nf6 {[%clk 0:02:59.4]} 2. c4 {[%clk 0:02:57.9]}
2... g6 {[%clk 0:02:57.6]} 3. Nc3 {[%clk 0:02:54.4]} 3... d5 {[%clk 0:02:58]} 4.
cxd5 {[%clk 0:02:53.6]} 4... Nxd5 {[%clk 0:02:58.9]} 5. Nf3 {[%clk 0:02:53.3]}
5... Bg7 {[%clk 0:02:57.2]} 6. Bd2 {[%clk 0:02:52.6]} 6... O-O {[%clk
0:02:56.1]} 7. e4 {[%clk 0:02:51.6]} 7... Nxc3 {[%clk 0:02:55.6]} 8. Bxc3 {[%clk
0:02:52.5]} 8... b6 {[%clk 0:02:52.4]} 9. Bd3 {[%clk 0:02:46.7]} 9... Bb7 {[%clk
0:02:52]} 10. O-O {[%clk 0:02:44.6]} 10... Nd7 {[%clk 0:02:51.9]} 11. Qe2 {[%clk
0:02:40.8]} 11... e6 {[%clk 0:02:51.7]} 12. Ba6 {[%clk 0:02:25.8]} 12... Qc8
{[%clk 0:02:48]} 13. Bxb7 {[%clk 0:02:23.4]} 13... Qxb7 {[%clk 0:02:48.9]} 14.
Rad1 {[%clk 0:02:23.7]} 14... Rfd8 {[%clk 0:02:41.8]} 15. h4 {[%clk 0:02:20.3]}
15... c5 {[%clk 0:02:26.9]} 16. h5 {[%clk 0:02:09.6]} 16... cxd4 {[%clk
0:02:23.9]} 17. Nxd4 {[%clk 0:02:07.7]} 17... Nc5 {[%clk 0:02:18.4]} 18. hxg6
{[%clk 0:02:06.8]} 18... hxg6 {[%clk 0:02:16.5]} 19. f3 {[%clk 0:02:05.4]} 19...
Rd7 {[%clk 0:02:08.7]} 20. Nb5 {[%clk 0:02:02.4]} 20... Rad8 {[%clk 0:01:51.5]}
21. Bxg7 {[%clk 0:01:57.7]} 21... Kxg7 {[%clk 0:01:48.5]} 22. Nc3 {[%clk
0:01:56.4]} 22... Qc7 {[%clk 0:01:37.9]} 23. Rxd7 {[%clk 0:01:55.3]} 23... Rxd7
{[%clk 0:01:34.7]} 24. Rd1 {[%clk 0:01:55.9]} 24... Qf4 {[%clk 0:01:12.9]} 25.
Rxd7 {[%clk 0:01:50.5]} 25... Nxd7 {[%clk 0:01:12.5]} 26. Kf2 {[%clk 0:01:48.2]}
26... Ne5 {[%clk 0:01:11.4]} 27. g3 {[%clk 0:01:42.8]} 27... Qc1 {[%clk
0:00:36]} 28. Kg2 {[%clk 0:01:37.7]} 28... g5 {[%clk 0:00:32.3]} 29. Nb5 {[%clk
0:01:32.9]} 29... g4 {[%clk 0:00:22.2]} 30. fxg4 {[%clk 0:01:30.7]} 30... Qg5
{[%clk 0:00:20.3]} 31. Nxa7 {[%clk 0:01:26.8]} 31... Nxg4 {[%clk 0:00:20.3]} 32.
Nb5 {[%clk 0:01:26.1]} 32... Ne3+ {[%clk 0:00:19.7]} 33. Kf3 {[%clk 0:01:25.5]}
33... f5 {[%clk 0:00:12.6]} 34. Qxe3 {[%clk 0:01:23.1]} 34... fxe4+ {[%clk
0:00:12.2]} 35. Qxe4 {[%clk 0:01:23.1]} 35... Qxb5 {[%clk 0:00:12]} 36. Qxe6
{[%clk 0:01:22.2]} 36... Qxb2 {[%clk 0:00:12]} 37. Qg4+ {[%clk 0:01:22.1]} 37...
Kf6 {[%clk 0:00:10.3]} 38. Qf4+ {[%clk 0:01:22.3]} 38... Kg7 {[%clk 0:00:10.5]}
39. a4 {[%clk 0:01:19.5]} 39... Qc3+ {[%clk 0:00:07.2]} 40. Kg4 {[%clk
0:01:19.5]} 40... Qc8+ {[%clk 0:00:06.3]} 41. Kh4 {[%clk 0:01:20]} 41... Qc2
{[%clk 0:00:04.8]} 42. Qg5+ {[%clk 0:01:18.3]} 42... Kf7 {[%clk 0:00:04.2]} 43.
Qd5+ {[%clk 0:01:17.7]} 43... Kg7 {[%clk 0:00:04.1]} 44. g4 {[%clk 0:01:17.9]}
44... Qxa4 {[%clk 0:00:02.8]} 45. Qb7+ {[%clk 0:01:14.6]} 45... Kg6 {[%clk
0:00:03.1]} 46. Qxb6+ {[%clk 0:01:14.7]} 46... Kg7 {[%clk 0:00:04]} 47. Qc7+
{[%clk 0:01:14.8]} 47... Kg6 {[%clk 0:00:04]} 48. Qd6+ {[%clk 0:01:14.8]} 48...
Kg7 {[%clk 0:00:04.5]} 49. Qe7+ {[%clk 0:01:14.3]} 49... Kg6 {[%clk 0:00:04.9]}
50. Qe6+ {[%clk 0:01:14.3]} 50... Kg7 {[%clk 0:00:05.3]} 51. Kh5 {[%clk
0:01:14.6]} 51... Qb5+ {[%clk 0:00:05.2]} 52. g5 {[%clk 0:01:13.8]} 52... Qf1
{[%clk 0:00:04.9]} 53. Qe7+ {[%clk 0:01:11.2]} 53... Qf7+ {[%clk 0:00:04.2]} 54.
Qxf7+ {[%clk 0:01:11]} 54... Kxf7 {[%clk 0:00:05.1]} 55. Kh6 {[%clk 0:01:11.6]}
55... Kf8 {[%clk 0:00:05.4]} 56. Kh7 {[%clk 0:01:11.6]} 1-0